bitfinex/quotes_BTCUSD_20220304
["timestamp","ask_amount","ask_price","bid_price","bid_amount"]
[1646401255099,0.662041,41552.0,41550.0,0.03364699]
[1646401255100,0.3,41551.0,41550.0,0.03364699]
[1646401255297,1.59389,41551.0,41537.0,0.4151]
[1646401255497,1.59389,41551.0,41532.0,0.120507]
[1646401255498,0.7357,41543.0,41532.0,0.120507]
[1646401255700,0.15,41544.0,41531.0,0.01]
[1646401255701,0.7357,41539.0,41531.0,0.01]
[1646401255901,0.7357,41539.0,41522.0,0.05]
[1646401255902,1.4,41533.0,41522.0,0.170507]
[1646401256098,0.7357,41531.0,41522.0,0.170507]
[1646401256297,0.1,41530.0,41522.0,0.120507]
[1646401256496,0.3,41529.0,41520.0,0.001]
[1646401257100,0.180823,41526.0,41521.0,0.120545]
[1646401257299,0.3,41525.0,41521.0,0.120545]
[1646401257497,0.180823,41526.0,41521.0,0.120545]
[1646401257797,0.3,41525.0,41521.0,0.120545]
[1646401258246,0.4,41525.0,41522.0,0.120507]
[1646401258445,0.060275,41524.0,41522.0,0.120507]
[1646401258645,0.060275,41524.0,41523.0,0.110272]
[1646401258848,0.460275,41524.0,41523.0,0.110272]
[1646401259045,0.460275,41524.0,41523.0,0.05]
[1646401259247,0.5142688,41524.0,41523.0,0.05]
[1646401259846,0.5142688,41524.0,41519.0,0.030137]
[1646401260045,0.460275,41524.0,41519.0,0.030137]
[1646401260445,0.460275,41524.0,41519.0,0.150688]
[1646401260646,0.460275,41524.0,41522.0,0.060275]
[1646401261246,0.460275,41524.0,41520.0,0.060274]
[1646401261546,0.460275,41524.0,41522.0,0.1999]
[1646401261746,0.460275,41524.0,41523.0,0.05]
[1646401261994,0.460275,41524.0,41522.0,0.1999]
[1646401262393,0.160275,41524.0,41522.0,0.1999]
[1646401262594,0.160275,41524.0,41522.0,0.2499]
[1646401262793,0.160275,41524.0,41522.0,0.46933632]
[1646401262794,0.060275,41524.0,41522.0,0.46933632]
[1646401263294,0.060275,41524.0,41523.0,0.05]
[1646401263493,0.060275,41524.0,41523.0,0.28488694]
[1646401263700,0.120549,41525.0,41523.0,0.52148027]
[1646401263896,0.12034436,41525.0,41524.0,0.07189062]
[1646401264096,0.12034436,41525.0,41524.0,0.12189062]
[1646401264295,0.006,41529.0,41524.0,0.12189062]
[1646401264498,0.006,41529.0,41525.0,0.090372]
[1646401264706,0.06369,41531.0,41525.0,1.540372]
[1646401264898,0.3,41545.0,41538.0,0.2890201]
[1646401265102,0.3,41545.0,41537.0,0.120487]
[1646401265300,0.3,41545.0,41541.0,0.1998]
[1646401265501,0.145486,41543.0,41541.0,0.1998]
[1646401265760,0.120486,41543.0,41541.0,0.2618]
[1646401265964,0.3,41542.0,41541.0,0.17953776]
[1646401266159,0.3539938,41542.0,41541.0,0.17953776]
[1646401266358,0.3,41542.0,41539.0,0.110244]
[1646401266560,0.16127636,41541.0,41539.0,0.110244]
[1646401266759,0.3,41540.0,41539.0,0.110244]
[1646401267060,0.3,41540.0,41538.0,0.030122]
[1646401267263,0.3,41540.0,41529.0,0.05]
[1646401267264,0.520505,41540.0,41529.0,0.05]
[1646401267461,0.2499,41535.0,41524.0,0.054229]
[1646401267663,0.795972,41532.0,41524.0,0.054229]
[1646401267859,0.795972,41532.0,41524.0,0.120537]
[1646401267860,0.4,41531.0,41524.0,0.120537]
[1646401268060,0.4,41531.0,41520.0,0.060276]
[1646401268260,0.120545,41529.0,41520.0,0.060276]
[1646401268660,0.3,41528.0,41520.0,0.060276]
[1646401268960,0.4,41528.0,41520.0,0.060276]
[1646401269406,0.4,41528.0,41524.0,0.060271]
[1646401269606,0.460273,41528.0,41524.0,0.060271]
[1646401269912,0.460273,41528.0,41524.0,0.110271]
[1646401270106,0.460273,41528.0,41524.0,0.060271]
[1646401270305,0.460273,41528.0,41524.0,0.110271]
[1646401270508,0.460273,41528.0,41523.0,0.05]
[1646401270907,0.460273,41528.0,41518.0,0.036164]
[1646401271108,0.460273,41528.0,41518.0,0.086164]
[1646401271507,0.460273,41528.0,41520.0,0.060276]
[1646401271907,0.460273,41528.0,41522.0,0.018082]
[1646401272914,0.7357,41525.0,41517.0,0.421]
[1646401273147,0.7357,41522.0,41517.0,0.421]
[1646401273348,1.176,41521.0,41516.0,0.002]
[1646401273548,1.3856,41521.0,41516.0,0.002]
[1646401273748,0.0539938,41517.0,41516.0,0.002]
[1646401273947,0.0539938,41517.0,41513.0,0.00018169]
[1646401273948,0.3539938,41517.0,41513.0,0.00018169]
[1646401274147,0.3,41517.0,41513.0,0.00018169]
[1646401274347,0.1,41516.0,41513.0,0.00018169]
[1646401274548,0.1,41516.0,41513.0,0.16046669]
[1646401274750,0.1,41516.0,41514.0,0.018084]
[1646401275150,0.1,41516.0,41514.0,0.217984]
[1646401275347,0.4,41517.0,41514.0,0.267984]
[1646401275748,0.3,41517.0,41514.0,0.267984]
[1646401275949,0.060289,41518.0,41516.0,0.0157163]
[1646401276249,0.060289,41518.0,41517.0,0.24054307]
[1646401276447,0.060289,41518.0,41517.0,0.29054307]
[1646401276648,0.360289,41518.0,41517.0,0.05]
[1646401276901,0.360289,41518.0,41517.0,0.04500001]
[1646401276902,0.160289,41518.0,41517.0,0.04500001]
[1646401277096,0.160289,41518.0,41517.0,0.1998]
[1646401277295,0.4,41518.0,41517.0,0.1998]
[1646401278097,0.4,41518.0,41517.0,0.2498]
[1646401278701,0.4539938,41518.0,41517.0,0.2498]
[1646401278899,0.4,41518.0,41517.0,0.05]
[1646401279101,0.1,41518.0,41517.0,0.05]
[1646401279299,0.220577,41519.0,41514.0,0.1]
[1646401279499,0.060273,41517.0,41516.0,0.1998]
[1646401279699,0.060273,41517.0,41516.0,0.2998]
[1646401280099,0.060273,41517.0,41516.0,0.59255884]
[1646401281147,0.060273,41517.0,41516.0,0.54255884]
[1646401282746,0.160273,41517.0,41516.0,0.54255884]
[1646401283647,0.060273,41517.0,41516.0,0.54255884]
[1646401284048,0.060273,41517.0,41516.0,0.59255884]
[1646401284248,0.060273,41517.0,41516.0,0.54255884]
[1646401284702,0.060273,41517.0,41516.0,0.78181278]
[1646401285201,0.060273,41517.0,41516.0,0.73181278]
[1646401285410,0.125,41524.0,41517.0,1.4]
[1646401285612,0.29511406,41529.0,41517.0,1.484356]
[1646401285808,0.29511406,41533.0,41517.0,1.510266]
[1646401286003,0.006,41530.0,41527.0,0.1998]
[1646401286205,0.060263,41529.0,41528.0,0.05]
[1646401286402,0.126526,41530.0,41528.0,0.05]
[1646401286904,0.126526,41530.0,41517.0,0.01335528]
[1646401286905,0.01101675,41523.0,41517.0,0.01335528]
[1646401287104,0.060278,41522.0,41517.0,0.05176728]
[1646401287303,0.060278,41522.0,41520.0,0.1998]
[1646401287704,0.060278,41522.0,41520.0,0.260071]
[1646401288448,0.060278,41522.0,41521.0,0.18133268]
[1646401288849,0.13157175,41523.0,41522.0,0.439722]
[1646401289247,0.13157175,41523.0,41522.0,0.489722]
[1646401289848,0.1,41530.0,41523.0,0.36842825]
[1646401290047,0.1,41530.0,41524.0,0.060266]
[1646401290248,0.1,41530.0,41524.0,0.128345]
[1646401290449,0.1,41530.0,41527.0,0.1998]
[1646401290651,0.1,41530.0,41528.0,0.05]
[1646401290850,0.060262,41530.0,41529.0,0.3192]
[1646401291894,0.2386,41531.0,41530.0,0.439738]
[1646401292300,0.58242892,41531.0,41530.0,0.489738]
[1646401292696,0.2386,41531.0,41530.0,0.128131]
[1646401293097,0.58242892,41531.0,41530.0,0.128131]
[1646401293900,0.2386,41531.0,41530.0,0.128131]
[1646401294301,0.1386,41531.0,41530.0,0.128131]
[1646401294705,0.180791,41532.0,41531.0,0.26592879]
[1646401294903,0.180791,41532.0,41531.0,0.59343029]
[1646401295304,0.120484,41538.0,41534.0,1.0]
[1646401295510,0.34382892,41543.0,41538.0,0.06625217]
[1646401295969,0.34382892,41543.0,41542.0,0.23063468]
[1646401296463,0.120471,41543.0,41542.0,0.83063468]
[1646401297062,0.120471,41543.0,41542.0,0.70095601]
[1646401297265,0.39365662,41557.0,41544.0,0.02409]
[1646401297466,0.44297434,41571.0,41558.0,0.5]
[1646401297663,0.02409,41575.0,41558.0,0.5]
[1646401297664,0.120411,41564.0,41558.0,0.5]
[1646401297861,0.120411,41564.0,41558.0,0.55]
[1646401298062,0.120411,41564.0,41559.0,0.018061]
[1646401298264,0.51414891,41564.0,41559.0,0.018061]
[1646401298465,0.39373791,41563.0,41559.0,0.018061]
[1646401298672,0.45396691,41560.0,41558.0,0.59819391]
[1646401298865,0.75979,41567.0,41559.0,0.1998]
[1646401298866,0.39355753,41562.0,41559.0,0.1998]
[1646401299264,0.39355753,41562.0,41558.0,0.59819391]
[1646401299265,0.1,41561.0,41558.0,0.55]
[1646401299508,0.280686,41561.0,41558.0,0.55]
[1646401300209,0.280686,41561.0,41559.0,0.120435]
[1646401300609,0.280686,41561.0,41559.0,0.138501]
[1646401300809,0.280686,41561.0,41559.0,0.338401]
[1646401301011,0.0539938,41560.0,41559.0,0.338401]
[1646401301212,0.280686,41561.0,41559.0,0.338401]
[1646401301609,0.280686,41561.0,41559.0,0.338301]
[1646401302719,0.280686,41561.0,41560.0,0.00012352]
[1646401302720,0.28075545,41561.0,41560.0,0.00012352]
[1646401302909,0.28075545,41561.0,41560.0,0.50012352]
[1646401303352,0.28075545,41561.0,41560.0,0.55012352]
[1646401303353,0.33474925,41561.0,41560.0,0.55012352]
[1646401304356,0.28075545,41561.0,41560.0,0.55012352]
[1646401305558,0.4999,41567.0,41562.0,0.65]
[1646401305758,2.1169,41576.0,41566.0,0.5]
[1646401305759,1.66565753,41576.0,41566.0,0.5]
[1646401306059,0.4998,41573.0,41571.0,0.2693677]
[1646401306261,0.120399,41572.0,41571.0,0.3193677]
[1646401306457,0.120399,41572.0,41571.0,0.1]
[1646401306898,0.4998,41573.0,41571.0,0.5]
[1646401307100,0.4998,41573.0,41571.0,0.138734]
[1646401307101,1.2355,41573.0,41571.0,0.138734]
[1646401307299,0.1,41572.0,41571.0,0.338534]
[1646401307497,0.220399,41572.0,41571.0,0.338534]
[1646401307697,0.95797589,41572.0,41569.0,0.01806]
[1646401307898,0.2499,41570.0,41569.0,0.01806]
[1646401308099,0.4998,41569.0,41567.0,0.036119]
[1646401308299,0.1,41568.0,41567.0,0.036119]
[1646401309197,0.1,41568.0,41567.0,0.086119]
[1646401309897,0.1,41568.0,41567.0,0.586119]
[1646401310950,1.09999732,41568.0,41552.0,0.12341065]
[1646401311152,1.09999732,41568.0,41543.0,0.5]
[1646401311153,1.1302,41557.0,41543.0,0.5]
[1646401311357,0.4998,41545.0,41543.0,0.5]
[1646401311553,0.4998,41545.0,41533.0,0.120521]
[1646401311554,0.3444,41544.0,41533.0,0.120521]
[1646401311848,0.3444,41544.0,41532.0,0.054233]
[1646401311849,0.1444,41544.0,41532.0,0.054233]
[1646401312050,0.5547,41540.0,41533.0,0.34376625]
[1646401312245,0.0539938,41536.0,41533.0,0.34376625]
[1646401312448,0.5444,41535.0,41534.0,0.21365825]
[1646401312644,0.5983938,41535.0,41534.0,0.42020626]
[1646401312848,0.5983938,41535.0,41534.0,0.21585825]
[1646401313047,0.5983938,41535.0,41534.0,0.0522]
[1646401313250,0.6586448,41535.0,41534.0,0.0522]
[1646401313445,0.0286448,41535.0,41533.0,0.060263]
[1646401313645,0.0444,41534.0,41533.0,0.060263]
[1646401314047,0.0444,41534.0,41532.0,0.054233]
[1646401314501,0.0444,41534.0,41531.0,0.018078]
[1646401314701,0.0444,41534.0,41533.0,0.01481715]
[1646401316005,0.01461558,41535.0,41533.0,0.01481715]
[1646401316206,0.0444,41534.0,41533.0,0.01481715]
[1646401316409,0.0444,41534.0,41532.0,0.2498]
[1646401316608,0.0444,41534.0,41532.0,0.1998]
[1646401316807,0.0444,41534.0,41533.0,0.01582577]
[1646401317007,0.18079,41533.0,41531.0,0.30307863]
[1646401317209,0.18079,41533.0,41532.0,0.5]
[1646401317409,0.18079,41533.0,41531.0,0.35307863]
[1646401317410,0.08079,41533.0,41531.0,0.35307863]
[1646401317607,0.08065833,41533.0,41531.0,0.35307863]
[1646401317809,0.3,41539.0,41531.0,0.35307863]
[1646401318147,6.101e-05,41534.0,41533.0,0.00011391]
[1646401318348,0.0444,41534.0,41533.0,0.00011391]
[1646401318548,0.180788,41540.0,41533.0,0.05011391]
[1646401318752,0.0444,41539.0,41533.0,0.05011391]
[1646401318952,0.03037209,41539.0,41533.0,0.05011391]
[1646401319748,0.03037209,41539.0,41533.0,0.11005451]
[1646401319949,0.060256,41538.0,41537.0,0.1999]
[1646401320149,0.0444,41538.0,41537.0,0.320396]
[1646401320350,0.14131411,41538.0,41537.0,0.370396]
[1646401320752,0.180788,41540.0,41538.0,0.18146505]
[1646401320949,0.180788,41540.0,41538.0,0.42030882]
[1646401320950,0.04577356,41539.0,41538.0,0.42030882]
[1646401321150,0.10601956,41539.0,41538.0,0.47030882]
[1646401321351,0.180788,41540.0,41538.0,0.28884377]
[1646401321554,0.1,41541.0,41538.0,0.2498]
[1646401321751,0.280768,41542.0,41538.0,0.2498]
[1646401322005,0.280768,41542.0,41540.0,0.1998]
[1646401322205,2.75320392,41542.0,41541.0,0.05]
[1646401322613,2.75320392,41542.0,41539.0,0.060246]
[1646401322807,2.75320392,41542.0,41535.0,0.00022935]
[1646401322808,0.7357,41538.0,41535.0,0.00022935]
[1646401323005,1.44822589,41536.0,41524.0,0.001]
[1646401323207,0.04822356,41532.0,41524.0,0.001]
[1646401323403,0.0482224,41528.0,41524.0,0.001]
[1646401323605,0.0482224,41525.0,41524.0,0.001]
[1646401323814,0.3926224,41525.0,41524.0,0.001]
[1646401324004,0.3926224,41525.0,41522.0,0.079042]
[1646401324210,0.09838793,41523.0,41522.0,0.079042]
[1646401324405,0.44278675,41523.0,41517.0,0.001]
[1646401324605,0.0482288,41519.0,41517.0,0.001]
[1646401324805,0.0444,41518.0,41517.0,0.001]
[1646401325010,2.1357,41517.0,41513.0,0.00018169]
[1646401325208,2.1357,41517.0,41513.0,0.06047969]
[1646401325209,0.1444,41516.0,41513.0,0.06047969]
[1646401325406,1.69,41514.0,41504.0,0.05]
[1646401325687,0.7357,41505.0,41497.0,0.001]
[1646401325881,1.01542601,41501.0,41497.0,0.001]
[1646401326080,1.01542601,41501.0,41494.0,0.001]
[1646401326081,2.1801,41500.0,41494.0,0.001]
[1646401326280,2.3051,41500.0,41496.0,0.180944]
[1646401326482,0.2499,41497.0,41489.0,0.0521]
[1646401326684,0.104724,41496.0,41489.0,0.0021]
[1646401326992,0.104724,41496.0,41492.0,0.06375828]
[1646401327181,0.0444,41495.0,41492.0,0.120601]
[1646401327380,0.4998,41497.0,41492.0,0.120601]
[1646401327381,0.0444,41494.0,41492.0,0.120601]
[1646401327580,0.4998,41497.0,41495.0,0.1998]
[1646401327780,0.0444,41496.0,41495.0,0.1998]
[1646401328182,0.165005,41496.0,41495.0,0.1998]
[1646401328381,0.165005,41496.0,41494.0,0.1959058]
[1646401328382,0.565005,41496.0,41494.0,0.1959058]
[1646401328582,0.565005,41496.0,41490.0,0.0041]
[1646401328583,0.44,41495.0,41490.0,0.0041]
[1646401328781,0.1444,41494.0,41491.0,0.060329]
[1646401328982,1.57476035,41493.0,41484.0,0.001]
[1646401329183,0.370563,41491.0,41484.0,0.001]
[1646401329404,0.0444,41490.0,41484.0,0.001]
[1646401329605,0.1444,41490.0,41484.0,0.121667]
[1646401329801,0.3,41489.0,41488.0,0.1999]
[1646401330004,0.404723,41489.0,41484.0,0.121667]
[1646401330203,0.1,41488.0,41484.0,0.121667]
[1646401330406,0.0444,41487.0,41484.0,0.121667]
[1646401330702,0.120664,41486.0,41484.0,0.121667]
[1646401330906,0.120664,41486.0,41484.0,0.30078474]
[1646401330907,0.0444,41485.0,41484.0,0.30078474]
[1646401331103,0.0444,41485.0,41484.0,0.121667]
[1646401332003,0.0444,41485.0,41484.0,0.30907111]
[1646401332404,0.0444,41485.0,41484.0,0.36869852]
[1646401332807,0.060323,41489.0,41486.0,0.45089825]
[1646401333163,0.4998,41495.0,41488.0,0.06031]
[1646401333164,0.3,41494.0,41488.0,0.06031]
[1646401333359,0.0444,41494.0,41493.0,0.1998]
[1646401333556,0.0444,41494.0,41493.0,0.2498]
[1646401333759,0.14284016,41494.0,41493.0,0.2498]
[1646401333957,0.44284016,41494.0,41490.0,0.120639]
[1646401334158,0.09844016,41491.0,41490.0,0.120639]
[1646401334358,0.14284016,41491.0,41490.0,0.120639]
[1646401335159,0.14284016,41491.0,41490.0,0.170639]
[1646401336061,0.44284016,41491.0,41490.0,0.170639]
[1646401336262,0.54284016,41491.0,41490.0,0.170639]
[1646401336665,0.54284016,41491.0,41489.0,0.008574]
[1646401336666,1.27854016,41491.0,41489.0,0.008574]
[1646401336932,0.49846391,41490.0,41489.0,0.008574]
[1646401337130,0.49846391,41490.0,41486.0,0.09742825]
[1646401337131,1.68591883,41490.0,41486.0,0.09742825]
[1646401337336,0.09846629,41487.0,41486.0,0.09742825]
[1646401337529,1.2499,41486.0,41481.0,0.15669808]
[1646401337732,0.204739,41485.0,41481.0,0.0021]
[1646401337930,0.2499,41483.0,41481.0,0.0021]
[1646401338130,0.0444,41482.0,41481.0,0.0021]
[1646401338729,0.0444,41482.0,41479.0,0.001]
[1646401338730,0.7,41481.0,41479.0,0.001]
[1646401338933,0.0444,41480.0,41479.0,0.001]
[1646401339130,0.1444,41480.0,41479.0,0.01353548]
[1646401339731,0.1444,41480.0,41479.0,0.31904484]
[1646401339934,0.1444,41480.0,41479.0,0.36904484]
[1646401340130,0.1444,41480.0,41479.0,0.43735099]
[1646401340331,0.0444,41480.0,41479.0,0.72493419]
[1646401340761,0.0444,41480.0,41479.0,0.78525319]
[1646401340962,0.0444,41481.0,41480.0,0.120638]
[1646401341362,0.0444,41481.0,41480.0,0.220638]
[1646401341562,0.0444,41483.0,41480.0,1.570638]
[1646401341764,0.060313,41485.0,41481.0,0.1]
[1646401341961,0.013311,41491.0,41481.0,0.1]
[1646401342161,0.013311,41491.0,41484.0,0.25696667]
[1646401342162,0.004,41488.0,41484.0,0.25696667]
[1646401342363,0.004,41488.0,41486.0,0.01245788]
[1646401342565,0.46,41498.0,41492.0,0.2329532]
[1646401342763,0.11465183,41493.0,41492.0,0.29591776]
[1646401342966,0.0444,41493.0,41492.0,0.74052523]
[1646401343165,0.060313,41496.0,41492.0,0.67670319]
[1646401343366,0.060313,41496.0,41492.0,0.72670319]
[1646401343567,0.3,41504.0,41495.0,0.28550012]
[1646401343568,0.6997,41501.0,41495.0,0.28550012]
[1646401343766,0.6997,41501.0,41495.0,0.56642812]
[1646401344165,0.120625,41497.0,41496.0,0.06031]
[1646401344407,0.420625,41497.0,41495.0,0.230928]
[1646401344605,0.120625,41497.0,41495.0,0.430728]
[1646401344805,0.370525,41497.0,41495.0,0.430728]
[1646401345207,0.370525,41497.0,41496.0,0.06031]
[1646401345406,0.470525,41497.0,41495.0,0.329025]
[1646401345707,0.4,41496.0,41495.0,0.329025]
[1646401345905,0.4,41496.0,41479.0,0.00118564]
[1646401345906,0.060333,41490.0,41479.0,0.00118564]
[1646401346106,0.3,41489.0,41480.0,0.1999]
[1646401346306,0.0444,41488.0,41484.0,0.060333]
[1646401346509,0.0444,41488.0,41485.0,0.1998]
[1646401346909,0.0444,41488.0,41485.0,0.3997]
[1646401346910,0.04410977,41488.0,41485.0,0.3997]
[1646401347109,0.120666,41491.0,41485.0,0.3997]
[1646401347311,0.120666,41491.0,41487.0,0.120648]
[1646401347511,0.2499,41493.0,41488.0,1.12351377]
[1646401347716,0.19040001,41493.0,41488.0,1.22351377]
[1646401348159,0.43336601,41497.0,41488.0,1.02371377]
[1646401348362,0.43336601,41497.0,41491.0,0.320417]
[1646401348559,0.120609,41496.0,41492.0,0.060309]
[1646401348759,0.120609,41496.0,41494.0,0.1998]
[1646401348960,0.120609,41496.0,41495.0,0.37538688]
[1646401350065,0.260609,41496.0,41495.0,0.05]
[1646401350862,0.120609,41496.0,41495.0,0.05]
[1646401351263,0.520609,41496.0,41495.0,0.05]
[1646401351921,0.520609,41496.0,41494.0,0.1998]
[1646401351922,0.910509,41496.0,41494.0,0.1998]
[1646401352121,0.44,41495.0,41494.0,0.1998]
[1646401352320,0.44,41495.0,41492.0,0.060309]
[1646401352521,0.3,41495.0,41492.0,0.060309]
[1646401352725,0.3,41495.0,41492.0,0.1998]
[1646401352726,0.4603266,41495.0,41492.0,0.1998]
[1646401352928,0.0444,41494.0,41486.0,0.120652]
[1646401353122,0.0444,41494.0,41492.0,0.1999]
[1646401353123,0.180987,41493.0,41492.0,0.1999]
[1646401353323,0.225387,41493.0,41492.0,0.2499]
[1646401353522,0.225387,41493.0,41487.0,0.05]
[1646401353923,0.180987,41493.0,41487.0,0.05]
[1646401354322,0.180987,41493.0,41491.0,0.0016]
[1646401354625,0.180987,41493.0,41492.0,0.0637677]
[1646401354825,0.168287,41493.0,41492.0,0.0637677]
[1646401355423,0.168287,41493.0,41492.0,0.29368665]
[1646401355665,0.168287,41493.0,41492.0,0.51224603]
[1646401355858,0.168287,41493.0,41492.0,0.34368665]
[1646401356259,0.168287,41493.0,41492.0,0.33768665]
[1646401356460,0.168287,41493.0,41492.0,0.044]
[1646401356860,0.168287,41493.0,41491.0,0.261716]
[1646401357661,0.168287,41493.0,41492.0,0.00018373]
[1646401358563,0.43136601,41497.0,41493.0,1.4]
[1646401358767,0.003,41497.0,41494.0,0.1998]
[1646401358965,0.003,41497.0,41495.0,0.061795]
[1646401358966,0.00023255,41497.0,41495.0,0.061795]
[1646401359164,0.3,41507.0,41503.0,0.06936659]
[1646401359430,0.4283,41509.0,41501.0,0.38452199]
[1646401359431,0.57915968,41509.0,41501.0,0.38452199]
[1646401359627,0.57915968,41509.0,41502.0,0.05]
[1646401360030,0.57915968,41509.0,41503.0,0.06029]
[1646401360236,0.060294,41508.0,41507.0,0.0015]
[1646401360433,0.4283,41509.0,41507.0,0.0015]
[1646401361133,0.4283,41509.0,41508.0,0.35504492]
[1646401361333,0.488585,41509.0,41508.0,0.40504492]
[1646401362132,0.488585,41509.0,41508.0,0.33405644]
[1646401362532,0.488585,41509.0,41508.0,0.05]
[1646401362934,0.488585,41509.0,41507.0,0.311586]
[1646401363756,0.488585,41509.0,41508.0,0.26140063]
[1646401363957,0.488585,41509.0,41508.0,0.26501526]
[1646401364258,0.488585,41509.0,41508.0,0.26140063]
[1646401364661,0.060285,41509.0,41508.0,0.26140063]
[1646401364858,0.180882,41512.0,41508.0,0.31965281]
[1646401365060,0.004,41513.0,41509.0,1.37409]
[1646401365259,0.4282,41518.0,41511.0,0.02409]
[1646401365459,0.12055,41517.0,41516.0,0.0015]
[1646401365667,0.2499,41521.0,41516.0,0.0015]
[1646401365872,0.8007,41532.0,41516.0,0.0015]
[1646401365873,0.8007,41532.0,41517.0,0.71763291]
[1646401366063,1.44155753,41535.0,41518.0,0.3]
[1646401366064,0.5,41531.0,41518.0,0.3]
[1646401366260,0.003,41526.0,41517.0,0.06174368]
[1646401366462,0.003,41526.0,41520.0,0.06026]
[1646401366916,0.003,41526.0,41525.0,0.01227227]
[1646401367111,0.003,41526.0,41519.0,0.17052]
[1646401367312,0.2499,41522.0,41519.0,0.17052]
[1646401367512,0.2499,41522.0,41520.0,0.01157942]
[1646401367513,0.060281,41521.0,41520.0,0.01157942]
[1646401367712,0.1,41521.0,41520.0,0.01157942]
[1646401370014,0.270462,41522.0,41520.0,0.01157942]
[1646401370413,0.275462,41522.0,41520.0,0.01157942]
[1646401371256,0.375462,41522.0,41520.0,0.01157942]
[1646401372258,0.370462,41522.0,41520.0,0.01157942]
[1646401372659,0.370462,41522.0,41520.0,0.01176017]
[1646401373965,0.4999,41527.0,41521.0,0.9]
[1646401374165,0.4999,41527.0,41523.0,0.060263]
[1646401374417,0.2415,41538.0,41524.0,0.23899234]
[1646401374418,0.004,41526.0,41524.0,0.23899234]
[1646401374615,0.2415,41538.0,41525.0,1.41466756]
[1646401374616,0.120495,41537.0,41525.0,1.41466756]
[1646401374817,0.4998,41536.0,41525.0,0.11466756]
[1646401375015,0.4998,41536.0,41529.0,0.26878583]
[1646401375216,0.4998,41536.0,41529.0,0.1]
[1646401375416,0.4998,41536.0,41531.0,0.01583916]
[1646401376016,0.7357,41535.0,41531.0,0.01583916]
[1646401376219,0.7497,41536.0,41531.0,0.01583916]
[1646401376617,0.060264,41535.0,41532.0,0.060264]
[1646401376818,0.160264,41535.0,41532.0,0.060264]
[1646401377216,0.160264,41535.0,41532.0,6.4e-05]
[1646401378457,0.160264,41535.0,41530.0,0.05]
[1646401378458,0.34401041,41534.0,41530.0,0.05]
[1646401378658,0.75417441,41535.0,41532.0,0.01068426]
[1646401378862,0.410164,41535.0,41532.0,0.01068426]
[1646401379657,0.160264,41535.0,41532.0,0.06691938]
[1646401379859,0.2499,41534.0,41532.0,0.06691938]
[1646401380557,0.50427441,41535.0,41532.0,0.06691938]
[1646401380757,0.160264,41535.0,41532.0,0.06691938]
[1646401380957,0.479303,41536.0,41532.0,0.06691938]
[1646401381759,0.060264,41535.0,41532.0,0.06691938]
[1646401382820,0.060264,41535.0,41534.0,0.00017148]
[1646401383019,0.717654,41536.0,41534.0,0.00017148]
[1646401383520,0.55087498,41536.0,41535.0,0.23447541]
[1646401383718,0.256152,41536.0,41535.0,0.28447541]
[1646401384120,0.2499,41542.0,41536.0,0.060247]
[1646401384121,0.61891041,41542.0,41536.0,0.060247]
[1646401384322,0.060247,41541.0,41536.0,0.060247]
[1646401384519,0.060247,41541.0,41537.0,0.26766532]
[1646401384719,0.060247,41541.0,41537.0,0.31766532]
[1646401385118,0.71740341,41542.0,41537.0,0.31766532]
[1646401385318,0.373393,41542.0,41537.0,0.31766532]
[1646401385519,1.01740341,41542.0,41537.0,0.31766532]
[1646401385759,0.370393,41542.0,41537.0,0.31766532]
[1646401386461,0.060247,41541.0,41537.0,0.31766532]
[1646401387259,0.060247,41541.0,41537.0,0.06554693]
[1646401387864,0.060247,41541.0,41539.0,0.00017077]
[1646401388063,0.060247,41541.0,41539.0,9.784e-05]
[1646401388264,0.060247,41541.0,41537.0,0.06554693]
[1646401388265,1.4,41539.0,41537.0,0.06554693]
[1646401388469,1.4,41539.0,41535.0,0.17178475]
[1646401388470,0.3,41538.0,41535.0,0.17178475]
[1646401388665,0.65400614,41537.0,41536.0,0.01030723]
[1646401388862,1.05400614,41537.0,41526.0,0.5]
[1646401389067,0.44383514,41536.0,41527.0,0.01257057]
[1646401389263,0.2499,41534.0,41527.0,0.01257057]
[1646401389510,0.78515748,41533.0,41527.0,0.01257057]
[1646401389710,0.78515748,41533.0,41528.0,0.060271]
[1646401389909,0.480815,41533.0,41528.0,0.060271]
[1646401390111,0.120543,41532.0,41528.0,0.060271]
[1646401390511,0.120543,41532.0,41527.0,0.13311157]
[1646401390712,0.2499,41529.0,41527.0,0.13311157]
[1646401390913,0.56437814,41532.0,41527.0,0.13311157]
[1646401390914,0.3444,41528.0,41527.0,0.13311157]
[1646401391113,0.35322332,41528.0,41527.0,0.13311157]
[1646401391312,0.60312332,41528.0,41527.0,0.13311157]
[1646401391521,0.120553,41527.0,41518.0,0.46551119]
[1646401391717,0.0444,41526.0,41519.0,0.01106718]
[1646401391917,0.3,41525.0,41519.0,0.01106718]
[1646401392211,0.4,41525.0,41520.0,0.060278]
[1646401393011,2.16730435,41522.0,41520.0,0.060278]
[1646401393272,2.21170435,41522.0,41520.0,0.060278]
[1646401393874,0.4,41521.0,41520.0,0.060278]
[1646401394072,0.4444,41521.0,41520.0,0.060278]
[1646401394282,0.4444,41521.0,41519.0,0.01106718]
[1646401394283,0.2499,41520.0,41519.0,0.01106718]
[1646401394477,1.33,41520.0,41519.0,0.01106718]
[1646401394673,1.33,41520.0,41509.0,0.02308]
[1646401394973,0.29201577,41518.0,41509.0,0.02308]
[1646401395172,0.3444,41517.0,41513.0,0.01358948]
[1646401395372,0.1,41516.0,41513.0,0.01358948]
[1646401395574,0.7839,41515.0,41513.0,0.01358948]
[1646401395775,1.8854,41514.0,41513.0,0.01358948]